bitfinex/quotes_SOLUSD_20250406
["timestamp","ask_amount","ask_price","bid_price","bid_amount"]
[1743967420371,9.57192314,107.68,107.64,46.92121738]
[1743967420776,9.57192314,107.68,107.59,19.07613357]
[1743967420987,0.28432314,107.67,107.63,46.92121738]
[1743967421291,9.2885,107.66,107.62,46.92121738]
[1743967421664,0.28432314,107.65,107.61,46.92121738]
[1743967421862,9.2885,107.66,107.62,46.92121738]
[1743967422082,9.57232314,107.67,107.63,46.92121738]
[1743967422384,46.92121738,107.66,107.61,46.92121738]
[1743967422580,0.28432314,107.65,107.61,46.92121738]
[1743967423080,19.07613357,107.65,107.61,46.92121738]
[1743967423281,9.57392314,107.65,107.62,46.92121738]
[1743967423678,9.57392314,107.65,107.61,46.92121738]
[1743967424385,9.57392314,107.65,107.58,46.92121738]
[1743967424685,9.57392314,107.65,107.61,46.92121738]
[1743967425065,9.57392314,107.65,107.59,9.2941]
[1743967425364,9.57392314,107.65,107.61,46.92121738]
[1743967425963,56.49514052,107.65,107.6,46.92121738]
[1743967426159,56.49514052,107.65,107.58,9.295]
[1743967426160,9.57392314,107.65,107.58,9.295]
[1743967426486,9.57592314,107.63,107.59,46.92121738]
[1743967426674,9.2916,107.63,107.59,46.92121738]
[1743967427071,0.28432314,107.62,107.58,46.92121738]
[1743967427271,9.2916,107.63,107.58,46.92121738]
[1743967427570,0.28432314,107.63,107.6,46.92121738]
[1743967427976,9.2904,107.64,107.6,46.92121738]
[1743967428290,46.92121738,107.62,107.57,46.92121738]
[1743967428671,0.28432314,107.59,107.53,9.2997]
[1743967428880,72.92121738,107.57,107.5,0.03]
[1743967429081,47.20554052,107.56,107.51,46.92121738]
[1743967429386,46.92121738,107.55,107.5,76.95121738]
[1743967429571,0.28432314,107.54,107.5,0.03]
[1743967429764,0.28432314,107.52,107.5,0.03]
[1743967429985,47.20554052,107.52,107.5,0.03]
[1743967430289,19.07613357,107.56,107.5,46.95121738]
[1743967430492,26.0,107.56,107.53,46.92121738]
[1743967430691,9.2972,107.56,107.53,46.92121738]
[1743967430868,0.28432314,107.55,107.5,0.03]
[1743967431189,65.71302781,107.56,107.48,9.3035]
[1743967431190,0.28432314,107.53,107.48,9.3035]
[1743967431361,0.28432314,107.53,107.49,46.92121738]
[1743967431793,0.28432314,107.53,107.48,9.3035]
[1743967432094,0.28432314,107.51,107.44,9.3075]
[1743967432296,0.28432314,107.49,107.44,46.92121738]
[1743967432590,73.20554052,107.49,107.44,46.92121738]
[1743967433389,46.92121738,107.47,107.42,56.23041738]
[1743967433600,0.42648471,107.48,107.43,46.92121738]
[1743967433762,0.28432314,107.48,107.43,46.92121738]
[1743967434092,35.3034,107.49,107.44,56.22861738]
[1743967434397,9.44266157,107.52,107.47,46.92121738]
[1743967434690,0.28432314,107.51,107.48,46.92121738]
[1743967434899,46.92121738,107.51,107.46,46.92121738]
[1743967435070,56.22171738,107.52,107.47,46.92121738]
[1743967435269,0.14216157,107.51,107.47,46.92121738]
[1743967435467,13.2265,107.53,107.49,46.92121738]
[1743967435700,13.2265,107.53,107.5,46.92121738]
[1743967435865,9.2971,107.56,107.47,18.64964886]
[1743967436068,12.2429,107.57,107.53,46.92121738]
[1743967436069,21.5393,107.57,107.53,46.92121738]
[1743967436391,46.92121738,107.56,107.51,56.22231738]
[1743967436698,46.92121738,107.55,107.47,32.5668]
[1743967436997,0.28432314,107.54,107.5,46.92121738]
[1743967437373,0.28432314,107.54,107.51,46.92121738]
[1743967437568,0.42648471,107.56,107.48,18.64964886]
[1743967437771,0.28432314,107.56,107.51,46.92121738]
[1743967438014,0.14216157,107.55,107.51,46.92121738]
[1743967438200,0.14216157,107.56,107.52,46.92121738]
[1743967438499,0.14216157,107.54,107.46,129.82121738]
[1743967438675,47.20554052,107.51,107.44,136.7]
[1743967438867,0.28432314,107.51,107.46,46.92121738]
[1743967439068,46.92121738,107.5,107.45,46.92121738]
[1743967439366,0.28432314,107.51,107.47,46.92121738]
[1743967440186,26.0,107.52,107.48,46.92121738]
[1743967440395,47.34770209,107.51,107.46,46.92121738]
[1743967440585,46.92121738,107.5,107.45,46.92121738]
[1743967440785,0.28432314,107.51,107.47,46.92121738]
[1743967440987,26.0,107.52,107.49,46.92121738]
[1743967441303,47.20554052,107.5,107.42,9.3092]
[1743967441476,46.92121738,107.46,107.41,139.13091738]
[1743967441801,46.92121738,107.46,107.41,56.23091738]
[1743967441977,0.42648471,107.47,107.42,46.92121738]
[1743967442179,0.28432314,107.47,107.44,46.92121738]
[1743967442501,46.92121738,107.45,107.41,0.03]
[1743967442667,47.34770209,107.46,107.41,0.03]
[1743967442872,0.42648471,107.46,107.41,0.03]
[1743967443294,47.34770209,107.46,107.41,46.95121738]
[1743967443594,47.34770209,107.44,107.41,0.03]
[1743967443789,65.99735095,107.42,107.41,0.03]
[1743967444097,75.30655095,107.42,107.41,0.03]
[1743967444300,88.57585095,107.42,107.4,72.5647423]
[1743967444472,45.07613357,107.38,107.37,0.03]
[1743967444672,19.07613357,107.37,107.35,0.03]
[1743967444878,46.92121738,107.4,107.31,30.03]
[1743967444879,0.28432314,107.35,107.31,0.03]
[1743967445079,47.34770209,107.32,107.31,0.03]
[1743967445279,91.99735095,107.32,107.31,0.03]
[1743967445798,0.28432314,107.3,107.27,42.81785046]
[1743967446589,0.28432314,107.28,107.27,42.81785046]
[1743967446804,46.92121738,107.3,107.27,42.81785046]
[1743967447097,9.3187,107.31,107.27,42.81785046]
[1743967447098,47.34770209,107.28,107.27,42.81785046]
[1743967447502,45.07613357,107.26,107.25,30.76252907]
[1743967447682,0.28432314,107.24,107.23,85.79045641]
[1743967447885,0.28432314,107.24,107.21,0.063]
[1743967447886,45.07613357,107.22,107.21,0.063]
[1743967448195,19.07613357,107.25,107.21,0.063]
[1743967448404,61.52121738,107.26,107.21,46.98421738]
[1743967448582,14.6,107.26,107.21,0.063]
[1743967448783,65.99735095,107.25,107.21,0.063]
[1743967448984,46.92121738,107.24,107.21,0.063]
[1743967449190,47.34770209,107.23,107.21,0.063]
[1743967449409,0.42648471,107.25,107.21,0.063]
[1743967449577,47.34770209,107.25,107.21,0.063]
[1743967449777,0.42648471,107.24,107.21,0.063]
[1743967450083,0.42648471,107.22,107.21,0.063]
[1743967450479,0.42648471,107.23,107.21,0.063]
[1743967450675,46.92121738,107.25,107.21,0.063]
[1743967450905,0.14216157,107.26,107.21,46.98421738]
[1743967451076,47.06337895,107.26,107.21,46.98421738]
[1743967451404,0.28432314,107.26,107.21,0.063]
[1743967451587,70.86281738,107.28,107.22,46.92121738]
[1743967451785,61.54121738,107.28,107.23,46.92121738]
[1743967451985,14.62,107.28,107.19,0.28432314]
[1743967452304,65.99735095,107.27,107.22,46.92121738]
[1743967452595,19.07613357,107.27,107.23,46.92121738]
[1743967452801,14.39283397,107.31,107.22,46.92121738]
[1743967452983,70.63105135,107.33,107.28,46.92121738]
[1743967453300,70.63105135,107.33,107.25,46.92121738]
[1743967453301,46.92121738,107.3,107.25,46.92121738]
[1743967453498,46.92121738,107.3,107.22,26.0]
[1743967453689,0.28432314,107.29,107.24,46.92121738]
[1743967453882,9.317,107.33,107.26,46.92121738]
[1743967454199,47.06337895,107.33,107.29,9.3205]
[1743967454413,47.06337895,107.33,107.28,56.24221738]
[1743967454699,18.933972,107.28,107.23,46.92121738]
[1743967455009,47.20554052,107.26,107.21,56.24861738]
[1743967455399,0.28432314,107.26,107.22,46.92121738]
[1743967455705,18.79181043,107.3,107.24,46.92121738]
[1743967455899,0.28432314,107.29,107.25,46.92121738]
[1743967456074,65.71302781,107.3,107.25,56.24501738]
[1743967456279,14.62,107.34,107.27,46.92121738]
[1743967456588,47.20554052,107.31,107.25,46.92121738]
[1743967456805,26.14216157,107.31,107.27,46.92121738]
[1743967457174,46.92121738,107.32,107.27,46.92121738]
[1743967457375,46.92121738,107.35,107.3,46.92121738]
[1743967457580,46.92121738,107.34,107.24,130.44092314]
[1743967457893,47.06337895,107.36,107.28,26.0]
[1743967458081,18.79181043,107.34,107.3,46.92121738]
[1743967458277,46.92121738,107.36,107.31,46.92121738]
[1743967458495,18.79181043,107.36,107.32,46.92121738]
[1743967458694,18.79181043,107.36,107.33,46.92121738]
[1743967458899,18.79181043,107.36,107.32,46.92121738]
[1743967459293,9.3128,107.38,107.34,46.92121738]
[1743967459499,348.64,107.41,107.35,46.92121738]
[1743967459500,0.14216157,107.39,107.35,46.92121738]
[1743967459701,23.9295,107.42,107.38,46.92121738]
[1743967459881,56.37167895,107.43,107.38,46.92121738]
[1743967460284,18.933972,107.42,107.38,46.92121738]
[1743967460583,45.08114059,107.49,107.41,46.92121738]
[1743967460790,46.92121738,107.43,107.34,46.92121738]
[1743967460993,47.06337895,107.42,107.37,46.92121738]
[1743967461197,47.1841,107.48,107.4,46.92121738]
[1743967461403,0.14216157,107.45,107.41,46.92121738]
[1743967461711,65.85518938,107.43,107.34,79.52731738]
[1743967461908,46.92121738,107.39,107.31,23.2949]
[1743967462111,46.92121738,107.39,107.35,46.92121738]
[1743967462112,0.14216157,107.39,107.35,46.92121738]
[1743967462285,70.85111738,107.42,107.37,46.92121738]
[1743967462604,70.85111738,107.42,107.36,46.92121738]
[1743967462605,65.99735095,107.41,107.36,46.92121738]
[1743967462904,19.07613357,107.39,107.31,9.3187]
[1743967463108,18.64964886,107.38,107.34,46.92121738]
[1743967463488,18.79181043,107.4,107.36,46.92121738]
[1743967463688,18.933972,107.41,107.37,46.92121738]
[1743967463901,18.933972,107.41,107.38,46.92121738]
[1743967464086,14.62,107.42,107.39,46.92121738]
[1743967464308,23.9294,107.42,107.39,46.92121738]
[1743967464610,18.79181043,107.41,107.37,46.92121738]
[1743967464981,18.79181043,107.41,107.36,46.92121738]
[1743967464982,0.14216157,107.4,107.36,46.92121738]
[1743967465286,18.79181043,107.41,107.37,46.92121738]
[1743967465488,24.05156157,107.42,107.38,46.92121738]
[1743967465689,9.3078,107.44,107.41,46.92121738]
[1743967465886,84.92827895,107.46,107.4,46.92121738]
[1743967465887,9.44816157,107.46,107.4,46.92121738]
[1743967466099,0.28432314,107.43,107.35,0.28432314]
[1743967466305,9.3101,107.41,107.38,46.92121738]
[1743967466486,19.07613357,107.43,107.39,46.92121738]
[1743967466687,9.3078,107.44,107.4,46.92121738]
[1743967466989,27.95744886,107.44,107.4,46.92121738]
[1743967467187,23.2597,107.49,107.37,19.07613357]
[1743967467386,9.304,107.48,107.44,46.92121738]
[1743967467802,9.304,107.48,107.41,46.92121738]
[1743967467803,0.14216157,107.47,107.41,46.92121738]
[1743967468006,0.28432314,107.45,107.41,46.92121738]
[1743967468301,0.42648471,107.45,107.42,46.92121738]
[1743967468513,9.73358471,107.45,107.41,46.92121738]
[1743967469096,9.73358471,107.45,107.42,46.92121738]
[1743967469305,9.73358471,107.45,107.39,9.3114]
[1743967469491,9.73358471,107.45,107.42,46.92121738]
[1743967469797,9.3059,107.46,107.43,46.92121738]
[1743967470834,9.3682,107.47,107.44,46.92121738]
[1743967471015,0.063,107.47,107.46,46.92121738]
[1743967471809,0.20516157,107.47,107.39,9.3113]
[1743967471987,19.07613357,107.44,107.37,22.4754]
[1743967472191,46.92121738,107.45,107.4,46.92121738]
[1743967472414,0.063,107.47,107.38,22.5835]
[1743967472589,0.34732314,107.47,107.43,46.92121738]
[1743967472791,0.063,107.47,107.44,46.92121738]
[1743967473103,0.063,107.47,107.41,0.14216157]
[1743967473104,0.063,107.47,107.45,46.92121738]
[1743967473498,0.063,107.47,107.42,9.3085]
[1743967473692,18.85481043,107.47,107.43,46.92121738]
[1743967473899,0.063,107.47,107.46,46.92121738]
[1743967474290,0.063,107.47,107.46,93.84243476]
[1743967474797,0.063,107.47,107.46,46.92121738]
[1743967475001,0.063,107.47,107.44,14.58]
[1743967475216,0.063,107.47,107.46,46.92121738]
[1743967475544,0.14216157,107.45,107.4,9.3106]
[1743967475824,0.14216157,107.43,107.39,46.92121738]
[1743967476016,33.513972,107.44,107.39,46.92121738]
[1743967476313,18.933972,107.46,107.36,18.933972]
[1743967476492,46.92121738,107.45,107.36,18.933972]
[1743967476691,0.14216157,107.45,107.41,46.92121738]
[1743967476894,0.14216157,107.43,107.35,32.6036]
[1743967477128,0.14216157,107.43,107.38,46.92121738]
[1743967477295,47.06337895,107.46,107.4,46.92121738]
[1743967477623,9.3075,107.44,107.4,46.92121738]
[1743967477997,0.14216157,107.46,107.4,46.92121738]
[1743967477998,0.063,107.47,107.43,46.92121738]
[1743967478317,0.063,107.47,107.46,46.92121738]
[1743967478709,0.063,107.47,107.45,46.92121738]
[1743967478893,0.063,107.47,107.44,46.92121738]
[1743967479093,0.063,107.47,107.4,46.92121738]
[1743967479316,0.063,107.47,107.46,46.92121738]
[1743967479708,0.063,107.47,107.41,18.933972]
[1743967479709,0.20516157,107.47,107.41,9.3101]
[1743967479908,0.20516157,107.47,107.43,46.92121738]
[1743967480112,18.933972,107.46,107.42,46.92121738]
[1743967480312,18.933972,107.46,107.4,9.3107]
[1743967480495,18.933972,107.46,107.42,46.92121738]
[1743967480917,18.933972,107.46,107.41,46.92121738]
[1743967481227,0.14216157,107.45,107.41,46.92121738]
[1743967481703,9.3075,107.44,107.41,46.92121738]
[1743967481897,9.3075,107.44,107.36,106.1853]
[1743967482215,9.3075,107.44,107.37,9.3135]
[1743967482396,56.22871738,107.44,107.39,46.92121738]
[1743967482594,56.22871738,107.44,107.39,14.58701945]
[1743967482811,65.99735095,107.43,107.35,9.3153]
[1743967482994,18.64964886,107.4,107.36,46.92121738]
[1743967483318,47.34770209,107.41,107.34,17.5765]
[1743967483518,26.0,107.41,107.37,46.92121738]
[1743967483702,19.07613357,107.43,107.39,46.92121738]
[1743967484302,19.07613357,107.43,107.38,46.92121738]
[1743967484700,46.92121738,107.42,107.34,55.18201738]
[1743967484907,18.933972,107.38,107.31,9.3187]
[1743967485112,18.933972,107.38,107.33,46.92121738]
[1743967485315,0.28432314,107.36,107.3,17.3341]
[1743967485508,0.28432314,107.36,107.32,46.92121738]
[1743967485822,9.3153,107.35,107.31,46.92121738]
[1743967486120,9.3153,107.35,107.32,46.92121738]
[1743967487119,46.92121738,107.38,107.33,46.92121738]
[1743967487322,19.07613357,107.38,107.35,46.92121738]
[1743967487525,23.8719,107.39,107.36,46.92121738]
[1743967488300,14.56,107.39,107.36,46.92121738]
[1743967488811,23.872,107.39,107.36,46.92121738]
[1743967489209,14.56,107.39,107.37,46.92121738]
[1743967489426,0.28432314,107.41,107.34,56.23711738]
[1743967489427,46.92121738,107.45,107.38,46.92121738]
[1743967489732,9.3083,107.43,107.39,46.92121738]
[1743967490308,9.3083,107.43,107.4,46.92121738]
[1743967490510,9.3083,107.43,107.39,46.92121738]
[1743967490818,9.3066,107.45,107.4,46.92121738]
[1743967491020,18.79181043,107.44,107.4,46.92121738]
[1743967491419,23.8661,107.46,107.42,46.92121738]
[1743967491624,9.51026157,107.47,107.44,46.92121738]
[1743967491805,0.063,107.47,107.45,46.92121738]
[1743967492626,0.063,107.47,107.46,46.92121738]
[1743967492831,0.063,107.47,107.44,46.92121738]
[1743967493030,0.063,107.47,107.45,46.92121738]
[1743967493203,0.063,107.47,107.41,51.519372]
[1743967493399,0.063,107.47,107.43,46.92121738]
[1743967493400,18.85481043,107.47,107.43,46.92121738]
[1743967493613,0.14216157,107.46,107.42,46.92121738]
[1743967493903,0.14216157,107.46,107.43,46.92121738]
[1743967493904,9.59072314,107.46,107.43,46.92121738]
[1743967494108,9.59072314,107.46,107.42,46.92121738]
[1743967494722,9.3064,107.46,107.42,46.92121738]
[1743967494927,9.3064,107.46,107.43,46.92121738]
[1743967495230,65.99735095,107.45,107.38,9.3127]
[1743967495429,65.99735095,107.45,107.4,46.92121738]
[1743967495805,9.3075,107.44,107.37,9.3135]
[1743967496004,19.07613357,107.43,107.39,46.92121738]
[1743967496207,19.07613357,107.43,107.4,46.92121738]
[1743967496626,19.07613357,107.43,107.39,46.92121738]
[1743967497321,9.3075,107.44,107.4,46.92121738]
[1743967498206,9.3075,107.44,107.39,9.3117]
[1743967498412,56.22871738,107.44,107.39,46.92121738]
[1743967498615,9.3062,107.46,107.38,18.933972]
[1743967498819,9.3062,107.46,107.42,46.92121738]
[1743967499204,9.3681,107.47,107.43,46.92121738]
[1743967499538,18.85481043,107.47,107.38,19.07613357]
[1743967499831,47.06337895,107.46,107.38,18.933972]
[1743967500009,47.06337895,107.46,107.42,46.92121738]
[1743967500010,0.14216157,107.46,107.42,46.92121738]
[1743967500210,0.063,107.47,107.43,46.92121738]
[1743967500425,0.063,107.47,107.45,46.92121738]
[1743967500629,9.368,107.47,107.42,9.3089]
[1743967500910,18.79181043,107.46,107.41,46.92121738]
[1743967501237,18.79181043,107.46,107.42,46.92121738]
[1743967502133,18.79181043,107.44,107.39,9.3115]
[1743967502443,9.3066,107.45,107.4,46.92121738]
[1743967502733,19.07613357,107.44,107.4,46.92121738]
[1743967502937,0.14216157,107.39,107.31,7.8596]
[1743967503240,0.42648471,107.37,107.31,7.8596]
[1743967503417,18.64964886,107.36,107.32,46.92121738]
[1743967503606,0.42648471,107.35,107.31,0.03]
[1743967503810,47.34770209,107.35,107.31,0.03]
[1743967504011,19.07613357,107.32,107.31,0.03]
[1743967504230,9.317,107.33,107.31,0.03]
[1743967504414,9.3166,107.34,107.31,46.95121738]
[1743967504613,28.39183357,107.35,107.31,46.95121738]
[1743967505539,75.31305095,107.35,107.31,0.03]
[1743967505913,14.54,107.37,107.33,56.23761738]
[1743967506235,23.8537,107.37,107.34,46.92121738]
[1743967506540,362.87283397,107.45,107.34,46.92121738]
[1743967506715,9.3092,107.42,107.38,46.92121738]
[1743967506929,14.54,107.43,107.4,46.92121738]
[1743967507113,14.39283397,107.45,107.42,46.92121738]
[1743967507314,14.39283397,107.45,107.41,18.933972]
[1743967507516,23.69943397,107.45,107.39,7.8296]
[1743967507741,23.69943397,107.45,107.41,46.92121738]
[1743967507937,23.69943397,107.45,107.39,7.8296]
[1743967508119,23.69943397,107.45,107.39,17.1411]
[1743967508317,9.3066,107.45,107.39,17.1411]
[1743967508546,9.3066,107.45,107.41,46.92121738]
[1743967508721,9.3066,107.45,107.39,7.8296]
[1743967508924,9.3066,107.45,107.41,46.92121738]
[1743967509141,65.85518938,107.44,107.39,46.92121738]
[1743967509319,18.79181043,107.41,107.37,46.92121738]
[1743967509524,47.20554052,107.4,107.35,46.92121738]
[1743967509742,0.28432314,107.38,107.32,9.3179]
[1743967510038,13.2513,107.49,107.4,26.0]
[1743967510244,13.2513,107.49,107.46,46.92121738]
[1743967510245,9.3034,107.49,107.46,46.92121738]
[1743967510450,23.3145,107.52,107.46,93.84243476]
[1743967510747,0.063,107.52,107.46,93.84243476]
[1743967511044,0.063,107.52,107.46,112.77640676]
[1743967511246,0.063,107.52,107.47,0.14216157]
[1743967511447,0.063,107.52,107.51,46.92121738]
[1743967512036,0.063,107.52,107.51,103.14383476]
[1743967512247,0.063,107.52,107.51,56.22261738]
[1743967512447,0.063,107.52,107.51,122.07780676]
[1743967512644,0.063,107.52,107.51,122.21996833]
[1743967512836,0.063,107.52,107.51,122.07780676]
[1743967513228,0.063,107.52,107.5,9.3021]
[1743967513441,0.063,107.52,107.48,28.237972]
[1743967513750,0.063,107.52,107.51,46.92121738]
[1743967514247,0.063,107.52,107.46,56.22661738]
[1743967514449,0.063,107.52,107.51,46.92121738]
[1743967515024,0.063,107.52,107.46,56.22661738]
[1743967515251,0.063,107.52,107.51,46.92121738]
[1743967516448,0.063,107.52,107.51,56.22261738]
[1743967516922,0.063,107.52,107.51,46.92121738]
[1743967517245,0.063,107.52,107.51,56.22261738]
[1743967517450,0.063,107.58,107.51,122.21996833]
[1743967517625,0.063,107.58,107.57,46.92121738]
[1743967518324,0.063,107.58,107.57,56.21741738]
[1743967519127,0.063,107.58,107.57,122.07260676]
[1743967519345,0.063,107.58,107.57,103.13863476]
[1743967519534,0.063,107.58,107.57,56.21741738]
[1743967519735,0.063,107.58,107.57,103.13863476]
[1743967520150,0.063,107.58,107.57,46.92121738]
[1743967520349,0.063,107.58,107.56,46.92121738]
[1743967520653,0.063,107.58,107.53,9.2997]
[1743967520856,0.063,107.58,107.57,46.92121738]
[1743967521155,0.063,107.58,107.56,46.92121738]
[1743967521546,19.13913357,107.58,107.54,46.92121738]
[1743967521855,0.063,107.58,107.54,46.92121738]
[1743967522452,0.14216157,107.54,107.46,129.82121738]
[1743967522652,19.07613357,107.54,107.47,9.3049]
[1743967522852,19.07613357,107.54,107.5,46.92121738]
[1743967523449,9.2997,107.53,107.49,46.92121738]
[1743967523651,9.2997,107.53,107.47,9.3049]
[1743967523848,9.2962,107.57,107.47,0.14216157]
[1743967524043,9.2962,107.57,107.51,46.92121738]
[1743967524234,19.07613357,107.56,107.53,46.92121738]
[1743967524434,19.07613357,107.56,107.47,19.07613357]
[1743967524637,19.07613357,107.54,107.46,46.92121738]
[1743967524839,65.99735095,107.54,107.49,46.92121738]
[1743967525156,65.99735095,107.52,107.47,46.92121738]
[1743967525582,9.3014,107.51,107.47,46.92121738]
[1743967526157,9.3014,107.51,107.44,17.6279]
[1743967526330,28.37693357,107.52,107.49,46.92121738]
[1743967527042,28.37693357,107.52,107.48,46.92121738]
[1743967527354,28.37693357,107.52,107.44,17.6279]
[1743967527655,19.07613357,107.5,107.46,46.92121738]
[1743967527831,19.07613357,107.51,107.48,46.92121738]
[1743967528249,19.07613357,107.51,107.44,9.3071]
[1743967528446,19.07613357,107.51,107.48,46.92121738]
[1743967528641,9.3008,107.52,107.49,46.92121738]
[1743967528843,9.298,107.55,107.51,46.92121738]
[1743967529042,9.2971,107.56,107.53,46.92121738]
[1743967529250,0.20516157,107.58,107.54,46.92121738]
[1743967529251,9.50076157,107.58,107.54,46.92121738]
[1743967529463,0.14216157,107.57,107.5,9.3017]
[1743967529638,47.06337895,107.57,107.52,46.92121738]
[1743967529844,0.14216157,107.55,107.48,9.3036]
[1743967530031,26.0,107.55,107.47,28.238472]
[1743967530230,26.0,107.55,107.52,46.92121738]
[1743967530534,0.14216157,107.56,107.48,18.64964886]
[1743967530737,47.06337895,107.54,107.46,9.3057]
[1743967531055,0.14216157,107.54,107.5,46.92121738]
[1743967531555,9.2997,107.53,107.49,46.92121738]
[1743967531759,65.99735095,107.52,107.44,82.9]
[1743967531962,65.99735095,107.52,107.47,46.92121738]
[1743967532738,9.3014,107.51,107.44,92.2074]
[1743967532948,28.37703357,107.52,107.49,46.92121738]
[1743967533264,9.3,107.53,107.5,46.92121738]
[1743967533560,9.3,107.53,107.49,46.92121738]
[1743967533745,19.07613357,107.5,107.45,46.92121738]
[1743967533946,0.42648471,107.48,107.41,9.3101]
[1743967534256,0.42648471,107.5,107.45,46.92121738]
[1743967534448,65.57086624,107.51,107.46,46.92121738]
[1743967534843,9.3023,107.5,107.46,46.92121738]
[1743967535062,9.3023,107.5,107.45,46.92121738]
[1743967535358,56.22351738,107.5,107.45,46.92121738]
[1743967535750,19.07613357,107.49,107.45,46.92121738]
[1743967536164,56.22351738,107.5,107.45,46.92121738]
[1743967536350,65.99735095,107.49,107.44,0.03]
[1743967536667,46.92121738,107.48,107.44,0.03]
[1743967536840,9.3049,107.47,107.44,0.03]
[1743967537263,47.34770209,107.45,107.44,0.03]
[1743967537461,19.07613357,107.46,107.44,0.03]
[1743967537768,65.99735095,107.46,107.44,0.03]
[1743967538077,46.92121738,107.47,107.44,0.03]
[1743967538360,46.92121738,107.49,107.44,46.95121738]
[1743967538666,18.79181043,107.48,107.44,0.03]
[1743967538964,47.06337895,107.48,107.44,0.03]
[1743967539466,19.07613357,107.49,107.45,46.92121738]
[1743967539647,18.933972,107.49,107.45,46.92121738]
[1743967540047,18.79181043,107.5,107.46,46.92121738]
[1743967540369,18.79181043,107.5,107.45,46.92121738]
[1743967540668,65.71302781,107.5,107.45,46.92121738]
[1743967540863,56.22391738,107.5,107.45,46.92121738]
[1743967541770,65.99735095,107.51,107.45,56.22771738]
[1743967541960,65.99735095,107.51,107.46,46.92121738]
[1743967542274,0.14216157,107.52,107.48,46.92121738]
[1743967542571,19.07613357,107.52,107.47,46.92121738]
[1743967542875,65.99735095,107.52,107.47,46.92121738]
[1743967543171,65.99735095,107.52,107.46,26.0]
[1743967543471,65.99735095,107.52,107.47,46.92121738]
[1743967543472,75.29805095,107.52,107.47,46.92121738]
[1743967543767,18.79181043,107.47,107.44,0.03]
[1743967543967,65.71302781,107.45,107.44,0.03]
[1743967544153,0.14216157,107.41,107.39,0.03]
[1743967544362,46.92121738,107.4,107.39,0.03]
[1743967544568,46.92121738,107.42,107.39,0.03]
[1743967544871,12.0782,107.45,107.39,0.03]
[1743967544872,30.72784886,107.45,107.39,0.03]
[1743967545078,65.57086624,107.44,107.39,46.95121738]
[1743967545281,47.34770209,107.42,107.39,0.03]
[1743967545477,18.64964886,107.44,107.39,0.03]
[1743967545683,65.57086624,107.44,107.39,0.03]
[1743967546180,18.64964886,107.47,107.41,46.92121738]
[1743967546350,75.16048938,107.47,107.41,46.92121738]
[1743967546551,12.0782,107.49,107.44,46.92121738]
[1743967546771,12.0782,107.49,107.41,19.07613357]
[1743967546772,0.14216157,107.51,107.46,46.92121738]
[1743967546977,61.38121738,107.52,107.47,46.92121738]
[1743967547154,14.46,107.52,107.45,19.07613357]
[1743967547357,14.46,107.52,107.48,46.92121738]
[1743967547571,56.36317895,107.53,107.48,46.92121738]
[1743967547772,28.09161043,107.53,107.45,19.07613357]
[1743967547972,46.92121738,107.52,107.45,26.0]
[1743967548178,46.92121738,107.51,107.46,46.92121738]
[1743967548482,65.85518938,107.52,107.46,46.92121738]
[1743967548671,65.85518938,107.52,107.42,9.309]
[1743967548672,0.14216157,107.49,107.42,9.309]
[1743967548856,27.95394886,107.48,107.43,46.92121738]
[1743967549180,46.92121738,107.5,107.45,46.92121738]
[1743967549385,18.933972,107.51,107.47,46.92121738]
[1743967549589,18.933972,107.52,107.48,46.92121738]
[1743967549887,18.79181043,107.5,107.46,46.92121738]
[1743967550076,0.28432314,107.49,107.45,46.92121738]
[1743967550475,18.79181043,107.52,107.48,46.92121738]
[1743967550677,18.79181043,107.52,107.45,26.0]
[1743967550878,18.79181043,107.52,107.48,46.92121738]
[1743967551078,18.79181043,107.52,107.49,46.92121738]
[1743967551605,9.3001,107.53,107.49,46.92121738]
[1743967552095,56.22131738,107.53,107.48,46.92121738]
[1743967552391,9.3001,107.53,107.49,46.92121738]
[1743967552557,56.22131738,107.53,107.48,46.92121738]
[1743967552762,9.3001,107.53,107.48,46.92121738]
[1743967553566,19.07613357,107.52,107.48,46.92121738]
[1743967554186,9.3001,107.53,107.49,46.92121738]
[1743967554392,0.20516157,107.57,107.52,46.92121738]
[1743967554589,0.063,107.57,107.54,46.92121738]
[1743967554977,0.42648471,107.56,107.53,46.92121738]
[1743967555289,19.07613357,107.54,107.5,46.92121738]
[1743967555674,46.92121738,107.53,107.48,129.82121738]